Workbook

Sheet Report1
A1: The Flats San Antonio (7314)
A2: Statement (13 months)
A3: UNAUDITED - ACCRUAL
A4: Period = Dec 2024-Dec 2025
A5: Book = Accrual ; Tree = ysi_is
C6: Dec 2024 | D6: Jan 2025 | E6: Feb 2025 | F6: Mar 2025 | G6: Apr 2025 | H6: May 2025 | I6: Jun 2025 | J6: Jul 2025 | K6: Aug 2025 | L6: Sep 2025 | M6: Oct 2025 | N6: Nov 2025 | O6: Dec 2025 | P6: Total
A8: 5000-0000 | B8: RECEIPTS
A10: 5040-0000 | B10: GROSS RENTAL REVENUE
A11: 5100-0000 | B11: RENT | C11: 65629 | D11: 65629 | E11: 65629 | F11: 66669 | G11: 66669 | H11: 65629 | I11: 65424.29 | J11: 66048.9 | K11: 63952 | L11: 67536.87 | M11: 65629 | N11: 65629 | O11: 65629 | P11: =SUM(C11:O11) -> 855703.06
A12: 5110-0000 | B12: LEASES BELOW/OVER MARKET | C12: -7968.01 | D12: -7290.01 | E12: -6784.01 | F12: -9953.01 | G12: -8400.01 | H12: -8661.01 | I12: -10011 | J12: -10287 | K12: -10467.76 | L12: -12967.76 | M12: -9588.61 | N12: -9588.61 | O12: -10060.23 | P12: =SUM(C12:O12) -> -122027.03
A13: 5130-0000 | B13: GROSS POSSIBLE RENT | C13: =SUM(C11:C12) -> 57660.99 | D13: 58338.99 | E13: 58844.99 | F13: 56715.99 | G13: 58268.99 | H13: 56967.99 | I13: 55413.29 | J13: 55761.9 | K13: 53484.24 | L13: 54569.11 | M13: 56040.39 | N13: =SUM(N11:N12) -> 56040.39 | O13: =SUM(O11:O12) -> 55568.77 | P13: =SUM(P11:P12) -> 733676.03
A15: 5139-0000 | B15: RENTAL LOSSES
A16: 5140-0000 | B16: LOST RENT-VACANCY | C16: -11411.25 | D16: -5817 | E16: -11051.14 | F16: -12856.76 | G16: -10218.4 | H16: -19849.1 | I16: -19529.95 | J16: -20368.01 | K16: -19434 | L16: -15544 | M16: -20724.95 | N16: -20724.95 | O16: -21876.33 | P16: =SUM(C16:O16) -> -209405.84
A17: 5152-0000 | B17: LOST RENT-CONCESSIONS | C17: -200 | D17: -700 | E17: 0 | F17: 0 | G17: 0 | H17: 0 | I17: 0 | J17: 0 | K17: 0 | L17: 0 | M17: 0 | N17: 0 | O17: 0 | P17: -900
A18: 5198-0000 | B18: TOTAL RENT LOSSES | C18: =-SUM(C16:C17) -> 11611.25 | D18: 6517 | E18: 11051.14 | F18: 12856.76 | G18: 10218.4 | H18: 19849.1 | I18: 19529.95 | J18: 20368.01 | K18: 19434 | L18: 15544 | M18: 20724.95 | N18: =-SUM(N16:N17) -> 20724.95 | O18: =-SUM(O16:O17) -> 21876.33 | P18: =-SUM(P16:P17) -> 210305.84
A19: 5199-0000 | B19: NET RENT RECEIPTS | C19: =C13-C18 -> 46049.74 | D19: 51821.99 | E19: 47793.85 | F19: 43859.23 | G19: 48050.59 | H19: 37118.89 | I19: 35883.34 | J19: 35393.89 | K19: 34050.24 | L19: 39025.11 | M19: 35315.44 | N19: 35315.44 | O19: =O13-O18 -> 33692.44 | P19: =P13-P18 -> 523370.19
A21: 5200-0000 | B21: OTHER RECEIPTS
A22: 5209-0000 | B22: PET RENT | C22: 0 | D22: 0 | E22: 0 | F22: 0 | G22: 0 | H22: 0 | I22: 25 | J22: 25 | K22: 25 | L22: 0 | M22: 0 | N22: 0 | O22: 0 | P22: =SUM(C22:O22) -> 75
A23: 5210-0000 | B23: PET DEPOSIT | C23: 0 | D23: 0 | E23: 0 | F23: 0 | G23: 0 | H23: 250 | I23: 0 | J23: 0 | K23: 0 | L23: 0 | M23: 0 | N23: 0 | O23: 0 | P23: 250
A24: 5215-0000 | B24: REDECORATION FEES | C24: 0 | D24: 0 | E24: 500 | F24: 250 | G24: 250 | H24: 250 | I24: 0 | J24: 250 | K24: 700 | L24: 250 | M24: 0 | N24: 0 | O24: 0 | P24: 2450
A25: 5251-0000 | B25: LATE FEES | C25: 0 | D25: 0 | E25: 0 | F25: 0 | G25: 602.1 | H25: 2615.6 | I25: 0 | J25: 608 | K25: 525.32 | L25: 0 | M25: 0 | N25: 0 | O25: 0 | P25: 4351.02
A26: 5255-0000 | B26: LEGAL FEES/COURT COSTS | C26: 0 | D26: 0 | E26: 0 | F26: 0 | G26: 0 | H26: 0 | I26: -1197 | J26: 0 | K26: 0 | L26: 0 | M26: 0 | N26: 0 | O26: 0 | P26: -1197
A27: 5256-0000 | B27: RESERVE FOR BAD DEBT | C27: -4621.91 | D27: 0 | E27: 0 | F27: 0 | G27: 0 | H27: 0 | I27: 0 | J27: 0 | K27: 0 | L27: 0 | M27: 0 | N27: 0 | O27: 0 | P27: -4621.91
A28: 5300-0000 | B28: INTEREST INCOME | C28: 0.06 | D28: 0.05 | E28: 0.03 | F28: 0.05 | G28: 0.04 | H28: 0.09 | I28: 0.08 | J28: 0.04 | K28: 0.06 | L28: 0.05 | M28: 0.11 | N28: 0.12 | O28: 0.09 | P28: 0.87
A29: 5306-0000 | B29: APPLICATION FEES | C29: 0 | D29: 0 | E29: 150 | F29: 100 | G29: 50 | H29: 50 | I29: 0 | J29: 50 | K29: 300 | L29: 50 | M29: 0 | N29: 50 | O29: 0 | P29: 800
A30: 5310-0000 | B30: MISCELLANEOUS INCOME | C30: -541.14 | D30: 183 | E30: 386.27 | F30: 516.35 | G30: 1125.54 | H30: 2474.45 | I30: 55.52 | J30: 367.35 | K30: 86.16 | L30: -28.02 | M30: 167.1 | N30: 0 | O30: 0 | P30: 4792.58
A31: 5314-0000 | B31: UTILITIES - GAS | C31: 0 | D31: 0 | E31: 0 | F31: 0 | G31: 0 | H31: 0 | I31: 0 | J31: 0 | K31: 0 | L31: 0 | M31: 0 | N31: 411.01 | O31: 443.85 | P31: 854.86
A32: 5315-0000 | B32: UTILITIES - ELECTRIC | C32: 0 | D32: 0 | E32: 0 | F32: 0 | G32: 0 | H32: 0 | I32: 0 | J32: 0 | K32: 0 | L32: 0 | M32: 0 | N32: 1080.06 | O32: 2152.13 | P32: 3232.19
A33: 5316-0000 | B33: UTILITIES - WATER/SEWER | C33: 0 | D33: 350 | E33: 2516.13 | F33: 1306.63 | G33: 4315.72 | H33: 6672.63 | I33: 3218.77 | J33: -2698.3 | K33: 3859.86 | L33: 4436.68 | M33: 92.86 | N33: 1189.11 | O33: 1610.78 | P33: 26870.87
A34: 5318-0000 | B34: TRASH REMOVAL INCOME | C34: 12.1 | D34: 0 | E34: 0 | F34: -48 | G34: 0 | H34: 0 | I34: 0 | J34: 0 | K34: 15 | L34: 0 | M34: 0 | N34: 0 | O34: 0 | P34: -20.9
A35: 5399-0000 | B35: TOTAL OTHER RECEIPTS | C35: =SUM(C22:C34) -> -5150.89 | D35: 533.05 | E35: 3552.43 | F35: 2125.03 | G35: 6343.4 | H35: 12312.77 | I35: 2102.37 | J35: -1397.91 | K35: 5511.4 | L35: 4708.71 | M35: 260.07 | N35: 2730.3 | O35: 4206.85 | P35: 37837.58
A36: 5990-0000 | B36: TOTAL RECEIPTS | C36: =C19+C35 -> 40898.85 | D36: 52355.04 | E36: 51346.28 | F36: 45984.26 | G36: 54393.99 | H36: 49431.66 | I36: 37985.71 | J36: 33995.98 | K36: 39561.64 | L36: 43733.82 | M36: 35575.51 | N36: 38045.74 | O36: 37899.29 | P36: 561207.77
A38: 6100-0000 | B38: OPERATING EXPENSES
A40: 6100-5000 | B40: ADMINISTRATIVE EXPENSES
A41: 6102-0000 | B41: ADVERTISING | C41: 0 | D41: 0 | E41: 0 | F41: 0 | G41: 0 | H41: 650.96 | I41: 0 | J41: 0 | K41: 0 | L41: 0 | M41: 1.4 | N41: 0 | O41: 0 | P41: =SUM(C41:O41) -> 652.36
A42: 6103-0000 | B42: MARKETING | C42: 0 | D42: 0 | E42: 0 | F42: 0 | G42: 600 | H42: 0 | I42: 0 | J42: 0 | K42: 0 | L42: 300 | M42: 0 | N42: 0 | O42: 0 | P42: 900
A43: 6104-0000 | B43: ACCOUNTING EXPENSE | C43: 0 | D43: 0 | E43: 0 | F43: 0 | G43: 0 | H43: 200 | I43: 0 | J43: 0 | K43: 0 | L43: 4041.8 | M43: 0 | N43: 0 | O43: 0 | P43: 4241.8
A44: 6108-0000 | B44: BANK FEES | C44: 97.21 | D44: 25 | E44: 29.03 | F44: 25 | G44: 62.08 | H44: 26.17 | I44: 459.29 | J44: 375 | K44: 480 | L44: 269.96 | M44: 25 | N44: 245 | O44: -500 | P44: 1618.74
A45: 6112-0000 | B45: DUES AND SUBSCRIPTIONS | C45: 0 | D45: 0 | E45: 0 | F45: 0 | G45: 0 | H45: 0 | I45: 0 | J45: 76.79 | K45: 45.14 | L45: 10.65 | M45: 82.29 | N45: 10.65 | O45: 10.65 | P45: 236.17
A46: 6122-0000 | B46: PAYROLL PROCESSING | C46: 0 | D46: 0 | E46: 0 | F46: 0 | G46: 0 | H46: 0 | I46: 0 | J46: 0 | K46: 0 | L46: 0 | M46: 0 | N46: 0 | O46: 0 | P46: 0
A47: 6125-0000 | B47: COURT COSTS | C47: 0 | D47: 2084.75 | E47: 1722 | F47: 0 | G47: 600 | H47: 342 | I47: 0 | J47: 0 | K47: 0 | L47: 0 | M47: 0 | N47: 0 | O47: 712 | P47: 5460.75
A48: 6130-0000 | B48: MANAGEMENT FEE | C48: 832.4 | D48: 4200 | E48: 1562.31 | F48: 2242.6 | G48: 4002.55 | H48: 554.3 | I48: 554.3 | J48: 5369.12 | K48: 1822.5 | L48: 0 | M48: 1607.92 | N48: 1612.06 | O48: 3069.34 | P48: 27429.4
A49: 6140-0000 | B49: OFFICE SUPPLIES | C49: 0 | D49: 0 | E49: 0 | F49: 0 | G49: 0 | H49: 170.9 | I49: 479.73 | J49: 25.9 | K49: 90.27 | L49: 0 | M49: 154.92 | N49: 105.57 | O49: 143.05 | P49: 1170.34
A50: 6141-0000 | B50: POSTAGE/EXPRESS MAIL | C50: 0 | D50: 0 | E50: 0 | F50: 0 | G50: 0 | H50: 10.83 | I50: 12.62 | J50: 0 | K50: 0 | L50: 0 | M50: 0 | N50: 0 | O50: 0 | P50: 23.45
A51: 6145-0000 | B51: TRAVEL & MEETING | C51: 0 | D51: 0 | E51: 0 | F51: 0 | G51: 0 | H51: 0 | I51: 0 | J51: 2032.45 | K51: 873.62 | L51: 205.71 | M51: 438.3 | N51: 798.7 | O51: 210.35 | P51: 4559.13
A52: 6150-0000 | B52: TELEPHONE | C52: 346.3 | D52: 180.33 | E52: 703.12 | F52: 325.4 | G52: 0 | H52: 0 | I52: 986.92 | J52: 1212.15 | K52: 580.23 | L52: 458.78 | M52: 164.26 | N52: 1063.88 | O52: 415.51 | P52: 6436.88
A53: 6170-0000 | B53: PROFESSIONAL SERVICES | C53: 0 | D53: 0 | E53: 0 | F53: 0 | G53: 0 | H53: 2274.56 | I53: 274.03 | J53: 0 | K53: 0 | L53: 0 | M53: 0 | N53: 0 | O53: 0 | P53: 2548.59
A54: 6171-0000 | B54: MEALS | C54: 0 | D54: 0 | E54: 0 | F54: 0 | G54: 0 | H54: 0 | I54: 0 | J54: 0 | K54: 0 | L54: 0 | M54: 41.64 | N54: 16.02 | O54: 0 | P54: 57.66
A55: 6172-0000 | B55: ENTERTAINMENT EXPENSE | C55: 0 | D55: 0 | E55: 0 | F55: 0 | G55: 0 | H55: 0 | I55: 43.26 | J55: 139.6 | K55: 112.43 | L55: 84.37 | M55: 224.53 | N55: 197.82 | O55: 162.71 | P55: 964.72
A56: 6199-0000 | B56: TOTAL ADMINISTRATIVE EXPENSES | C56: =SUM(C41:C55) -> 1275.91 | D56: 6490.08 | E56: 4016.46 | F56: 2593 | G56: 5264.63 | H56: 4229.72 | I56: 2810.15 | J56: 9231.01 | K56: 4004.19 | L56: 5371.27 | M56: 2740.26 | N56: =SUM(N41:N55) -> 4049.7 | O56: =SUM(O41:O55) -> 4223.61 | P56: =SUM(P41:P55) -> 56299.99
A58: 6200-0000 | B58: PERSONNEL
A59: 6240-0000 | B59: OFFICE SALARIES | C59: 3240 | D59: 4072 | E59: 1920 | F59: 1492.53 | G59: 1458.93 | H59: 2494.8 | I59: 4376.8 | J59: 3207.6 | K59: 2778.4 | L59: 3570.33 | M59: 3208.2 | N59: 7774.33 | O59: 2957.5 | P59: =SUM(C59:O59) -> 42551.42
A60: 6250-0000 | B60: MAINTENANCE SALARIES | C60: 2040 | D60: 1495 | E60: 5120 | F60: 0 | G60: 0 | H60: 2664.28 | I60: 1880.13 | J60: 3901.62 | K60: 3599.83 | L60: 1608.8 | M60: 4577.3 | N60: 1998.24 | O60: 3983.72 | P60: 32868.92
A61: 6265-0000 | B61: TEMPORARY STAFFING | C61: 0 | D61: 0 | E61: 10082 | F61: 536 | G61: 3580 | H61: 3528.48 | I61: 2386 | J61: 2643.42 | K61: 2892.72 | L61: 5716.84 | M61: 558.9 | N61: 0 | O61: 1532.48 | P61: 33456.84
A62: 6299-0000 | B62: TOTAL PERSONNEL | C62: =SUM(C59:C61) -> 5280 | D62: 5567 | E62: 17122 | F62: 2028.53 | G62: 5038.93 | H62: 8687.56 | I62: 8642.93 | J62: 9752.64 | K62: 9270.95 | L62: 10895.97 | M62: 8344.4 | N62: =SUM(N59:N61) -> 9772.57 | O62: =SUM(O59:O61) -> 8473.7 | P62: 108877.18
A64: 6300-0000 | B64: MATERIALS
A65: 6305-0000 | B65: GROUNDS SUPPLIES | C65: 0 | D65: 0 | E65: 0 | F65: 500 | G65: 0 | H65: 0 | I65: 63.43 | J65: 0 | K65: 0 | L65: 0 | M65: 0 | N65: 105.85 | O65: 0 | P65: =SUM(C65:O65) -> 669.28
A66: 6310-0000 | B66: JANITORIAL SUPPLIES | C66: 0 | D66: 0 | E66: 0 | F66: 0 | G66: 0 | H66: 980.82 | I66: 0 | J66: 0 | K66: 0 | L66: 700 | M66: 0 | N66: 0 | O66: 0 | P66: 1680.82
A67: 6315-0000 | B67: HARDWARE | C67: 0 | D67: 0 | E67: 0 | F67: 0 | G67: 0 | H67: 1451.12 | I67: 0 | J67: 614.72 | K67: 1226.99 | L67: 0 | M67: 74.25 | N67: 0 | O67: 0 | P67: 3367.08
A68: 6322-0000 | B68: Building Repair Supplies | C68: 0 | D68: 0 | E68: 0 | F68: 0 | G68: 2450 | H68: 1000 | I68: 249.09 | J68: 664.42 | K68: 1261.38 | L68: 103.76 | M68: 1779.06 | N68: 3290.14 | O68: 603.64 | P68: 11401.49
A69: 6325-0000 | B69: ELECTRICAL SUPPLIES | C69: 0 | D69: 0 | E69: 0 | F69: 0 | G69: 0 | H69: 0 | I69: 0 | J69: 185.08 | K69: 0 | L69: 0 | M69: 24 | N69: 0 | O69: 0 | P69: 209.08
A70: 6341-0000 | B70: POOL SUPPLIES | C70: 0 | D70: 0 | E70: 0 | F70: 0 | G70: 2300 | H70: 0 | I70: 600 | J70: 0 | K70: 500 | L70: 0 | M70: 225.97 | N70: 228.21 | O70: 0 | P70: 3854.18
A71: 6346-0000 | B71: HEATING AND A/C PARTS | C71: 0 | D71: 0 | E71: 0 | F71: 0 | G71: 0 | H71: 0 | I71: 0 | J71: 311.77 | K71: 0 | L71: 0 | M71: 0 | N71: 0 | O71: 0 | P71: 311.77
A72: 6349-0000 | B72: TOTAL MATERIALS | C72: =SUM(C65:C71) -> 0 | D72: 0 | E72: 0 | F72: 500 | G72: 4750 | H72: 3431.94 | I72: 912.52 | J72: 1775.99 | K72: 2988.37 | L72: 803.76 | M72: 2103.28 | N72: =SUM(N65:N71) -> 3624.2 | O72: =SUM(O65:O71) -> 603.64 | P72: 21493.7
A74: 6350-0000 | B74: CONTRACT & REPAIRS
A75: 6378-0000 | B75: JANITORIAL | C75: 0 | D75: 0 | E75: 0 | F75: 0 | G75: 0 | H75: 0 | I75: 0 | J75: 0 | K75: 0 | L75: 0 | M75: 0 | N75: 0 | O75: 810 | P75: =SUM(C75:O75) -> 810
A76: 6382-0000 | B76: PLUMBING REPAIRS | C76: 0 | D76: 2693.26 | E76: 0 | F76: 0 | G76: 0 | H76: 0 | I76: 2499.16 | J76: 136.27 | K76: 0 | L76: 0 | M76: 131.66 | N76: 331.48 | O76: 0 | P76: =SUM(C76:O76) -> 5791.83
A77: 6399-0000 | B77: TOTAL CONTRACT & REPAIRS | C77: =C75+C76 -> 0 | D77: =D75+D76 -> 2693.26 | E77: 0 | F77: 0 | G77: 0 | H77: 0 | I77: 2499.16 | J77: 136.27 | K77: 0 | L77: 0 | M77: 131.66 | N77: 331.48 | O77: 810 | P77: 6601.83
A79: 6400-0000 | B79: UTILITIES
A80: 6410-0000 | B80: ELECTRICITY | C80: 4625.38 | D80: 13566.39 | E80: 3500 | F80: 3500 | G80: 3500 | H80: -13759.87 | I80: 2000 | J80: 7320 | K80: 3262.4 | L80: 3262.4 | M80: 3500 | N80: 11044.11 | O80: 10458.02 | P80: =SUM(C80:O80) -> 55778.83
A81: 6420-0000 | B81: WATER | C81: 2009.11 | D81: 19747.89 | E81: 1006.02 | F81: 1069.11 | G81: 14252.11 | H81: 0 | I81: 5000 | J81: 3850.05 | K81: 5887.58 | L81: 5887.58 | M81: 5950 | N81: 5950 | O81: -3365.28 | P81: 67244.17
A82: 6440-0000 | B82: GAS | C82: 0 | D82: 0 | E82: 0 | F82: 0 | G82: 0 | H82: 0 | I82: 0 | J82: 0 | K82: 0 | L82: 0 | M82: 0 | N82: 6648 | O82: 6649.59 | P82: =SUM(C82:O82) -> 13297.59
A83: 6450-0000 | B83: TRASH COLLECTION - CONTRACT | C83: 0 | D83: 5199 | E83: 3288.42 | F83: 3131.65 | G83: 1000 | H83: 1008.01 | I83: 2067.35 | J83: 0 | K83: 1153.96 | L83: 1153.96 | M83: 1126.5 | N83: 1127.46 | O83: 1153.96 | P83: 21410.27
A84: 6465-0000 | B84: INTERNET EXPENSE | C84: 153.08 | D84: 153.08 | E84: 153.08 | F84: 168.14 | G84: 179.04 | H84: 179.04 | I84: 402.12 | J84: 397.04 | K84: 179.04 | L84: 723.05 | M84: 597.64 | N84: 241.25 | O84: 179.04 | P84: 3704.64
A85: 6499-0000 | B85: TOTAL UTILITY EXPENSES | C85: =SUM(C80:C84) -> 6787.57 | D85: 38666.36 | E85: 7947.52 | F85: 7868.9 | G85: 18931.15 | H85: -12572.82 | I85: 9469.47 | J85: 11567.09 | K85: 10482.98 | L85: 11026.99 | M85: 11174.14 | N85: =SUM(N80:N84) -> 25010.82 | O85: =SUM(O80:O84) -> 15075.33 | P85: 161435.5
A87: 6500-0000 | B87: TAXES & INSURANCE
A88: 6530-0000 | B88: HAZARD INSURANCE | C88: 3975.07 | D88: 3975.07 | E88: 3975.07 | F88: 3975.07 | G88: 3975.07 | H88: 3975.07 | I88: 3975.07 | J88: 3975.07 | K88: 3975.07 | L88: 3975.07 | M88: 3475.9 | N88: 3475.9 | O88: 3475.9 | P88: =SUM(C88:O88) -> 50178.4
A89: 6550-0000 | B89: REAL ESTATE TAXES | C89: 12406 | D89: 10599.13 | E89: 10599.13 | F89: 10599.13 | G89: 10599.13 | H89: 10599.13 | I89: 10599.13 | J89: 10599.13 | K89: 10599.13 | L89: 10599.13 | M89: =L89 -> 10599.13 | N89: 10599.13 | O89: 10599.13 | P89: 139595.56
A90: 6599-0000 | B90: TOTAL TAXES & INSURANCE | C90: =SUM(C88:C89) -> 16381.07 | D90: 14574.2 | E90: 14574.2 | F90: 14574.2 | G90: 14574.2 | H90: 14574.2 | I90: 14574.2 | J90: 14574.2 | K90: 14574.2 | L90: 14574.2 | M90: 14075.03 | N90: =SUM(N88:N89) -> 14075.03 | O90: =SUM(O88:O89) -> 14075.03 | P90: 189773.96
A92: 6900-0000 | B92: TOTAL OPERATING EXPENSES | C92: =C56+C62+C72+C77+C85+C90 -> 29724.55 | D92: 67990.9 | E92: 43660.18 | F92: 27564.63 | G92: 48558.91 | H92: 18350.6 | I92: 38908.43 | J92: 47037.2 | K92: 41320.69 | L92: 42672.19 | M92: 38568.77 | N92: =N56+N62+N72+N77+N85+N90 -> 56863.8 | O92: =O56+O62+O72+O77+O85+O90 -> 43261.31 | P92: 544482.16
A94: 6999-0000 | B94: CASH FLOW FROM OPERATIONS | C94: =C36-C92 -> 11174.3 | D94: -15635.86 | E94: 7686.1 | F94: 18419.63 | G94: 5835.08 | H94: 31081.06 | I94: -922.72 | J94: -13041.22 | K94: -1759.05 | L94: 1061.63 | M94: -2993.26 | N94: =N36-N92 -> -18818.06 | O94: =O36-O92 -> -5362.02 | P94: 16725.61
A96: 7000-0000 | B96: NON-OPERATING EXPENSES
A98: 7150-0000 | B98: MISC EXPENSES
A99: 7170-0000 | B99: MISC EXPENSE | C99: 2954.7 | D99: 0 | E99: 1036.28 | F99: 0 | G99: 0 | H99: 73.72 | I99: 71.52 | J99: 6.9 | K99: 375.03 | L99: 3489.04 | M99: 11.9 | N99: 373.84 | O99: 821.79 | P99: =SUM(C99:O99) -> 9214.72
A100: 7199-0000 | B100: TOTAL MISC EXPENSES | C100: =C99 -> 2954.7 | D100: 0 | E100: 1036.28 | F100: 0 | G100: 0 | H100: 73.72 | I100: 71.52 | J100: 6.9 | K100: 375.03 | L100: 3489.04 | M100: 11.9 | N100: =N99 -> 373.84 | O100: =O99 -> 821.79 | P100: 9214.72
A102: 7200-0000 | B102: DEBT SERVICE
A103: 7220-0000 | B103: MORTGAGE INTEREST -1ST | C103: 21548.19 | D103: 21548.19 | E103: 20725.64 | F103: 20725.64 | G103: 20725.64 | H103: 20725.64 | I103: 20725.64 | J103: 20725.64 | K103: 20725.64 | L103: 20725.64 | M103: 20725.64 | N103: 20725.64 | O103: 20725.64 | P103: =SUM(C103:O103) -> 271078.42
A104: 7225-0000 | B104: MORTGAGE INTEREST - 2ND | C104: 2003.37 | D104: 2003.37 | E104: 2003.37 | F104: 2003.37 | G104: 2003.37 | H104: 2003.37 | I104: 2003.37 | J104: 2003.37 | K104: 2003.37 | L104: 2003.37 | M104: 2003.37 | N104: 2003.37 | O104: 2003.37 | P104: 26043.81
A105: 7299-0000 | B105: TOTAL DEBT SERVICE | C105: =SUM(C103:C104) -> 23551.56 | D105: 23551.56 | E105: 22729.01 | F105: 22729.01 | G105: 22729.01 | H105: 22729.01 | I105: 22729.01 | J105: 22729.01 | K105: 22729.01 | L105: 22729.01 | M105: 22729.01 | N105: =SUM(N103:N104) -> 22729.01 | O105: =SUM(O103:O104) -> 22729.01 | P105: 297122.23
A107: 8999-0000 | B107: TOTAL NON-OPERATING EXPENSES | C107: =C100+C105 -> 26506.26 | D107: 23551.56 | E107: 23765.29 | F107: 22729.01 | G107: 22729.01 | H107: 22802.73 | I107: 22800.53 | J107: 22735.91 | K107: 23104.04 | L107: 26218.05 | M107: 22740.91 | N107: =N100+N105 -> 23102.85 | O107: =O100+O105 -> 23550.8 | P107: 306336.95
A109: 9090-0000 | B109: NET INCOME | C109: =C94-C107 -> -15331.96 | D109: -39187.42 | E109: -16079.19 | F109: -4309.38 | G109: -16893.93 | H109: 8278.33 | I109: -23723.25 | J109: -35777.13 | K109: -24863.09 | L109: -25156.42 | M109: -25734.17 | N109: =N94-N107 -> -41920.91 | O109: =O94-O107 -> -28912.82 | P109: =P94-P107 -> -289611.34
